[Event "Hungarian U20 Junior-ch Men 2024"]
[Site "Budapest"]
[Date "2024.03.15"]
[Round "5.5"]
[White "Pasti, Aron"]
[Black "Gombocz, Ferenc Jr."]
[Result "1-0"]
[ECO "C84"]
[WhiteElo "2373"]
[BlackElo "2351"]
[Annotator "RC"]
[PlyCount "137"]
[EventDate "2024.03.10"]
[EventCountry "HUN"]
[SourceTitle "playchess.com"]
[Source "ChessBase"]
[SourceQuality "1"]
[TimeControl "40/5400+30:1800+30"]

1. e4 {[%emt 0:00:35]} e5 {[%emt 0:00:39]} 2. Nf3 {[%emt 0:00:02]} Nc6 {[%emt 0:00:04]} 3. Bb5 {[%emt 0:00:05]} a6 {[%emt 0:00:06]} 4. Ba4 {[%emt 0:00:02]} Nf6 {[%emt 0:00:08]} 5. O-O {[%emt 0:00:45]} Be7 {[%emt 0:00:14]} 6. d4 {[%emt 0:05:59]} exd4 {[%emt 0:00:51]} 7. e5 {[%emt 0:03:33]} Ne4 {[%emt 0:01:39]} 8. Nxd4 {[%emt 0:00:10]} Nxd4 {[%emt 0:06:36]} 9. Qxd4 {[%emt 0:00:02]} Nc5 {[%emt 0:00:08]} 10. Bb3 {[%emt 0:00:01]} Nxb3 {[%emt 0:00:38]} 11. cxb3 {[%emt 0:00:14]} O-O {[%emt 0:02:06]} 12. Bf4 {[%emt 0:00:58]} d6 {[%emt 0:08:05]} 13. exd6 {[%emt 0:02:34]} Bxd6 {[%emt 0:00:42]} 14. Bxd6 {[%emt 0:07:10]} Qxd6 {[%emt 0:00:12]} 15. Qxd6 {[%emt 0:00:02]} cxd6 {[%emt 0:00:05]} 16. Nc3 {[%emt 0:00:01]} Be6 {[%emt 0:02:32]} 17. f4 {[%emt 0:00:07]} f5 {[%emt 0:03:23]} 18. Rad1 {[%emt 0:00:57]} Rad8 {[%emt 0:02:16]} 19. Rd2 {[%emt 0:00:39]} Rd7 {[%emt 0:06:17]} 20. Re1 {[%emt 0:02:01]} Bf7 {[%emt 0:02:19]} 21. Red1 {[%emt 0:10:45]} Rfd8 {[%emt 0:00:10]} 22. Rd4 {[%emt 0:01:13]} Be6 {[%emt 0:06:21]} 23. b4 {[%emt 0:01:21]} b5 {[%emt 0:01:41]} 24. R4d2 {[%emt 0:03:24]} Kf7 {[%emt 0:03:52]} 25. b3 {[%emt 0:05:37]} Rc8 {[%emt 0:04:48]} 26. Ne2 {[%emt 0:00:11]} Ke7 {[%emt 0:00:19]} 27. Nd4 {[%emt 0:02:24]} Kf6 {[%emt 0:00:08]} 28. Re1 {[%emt 0:04:53]} Bf7 {[%emt 0:00:12]} 29. Nf3 {[%emt 0:00:13]} Be6 {[%emt 0:10:50]} 30. Ng5 {[%emt 0:05:47]} Bg8 {[%emt 0:00:14]} 31. h3 {[%emt 0:14:35]} g6 {[%emt 0:22:35]} 32. Kh2 {[%emt 0:02:40]} h5 {[%emt 0:03:28]} 33. Kg3 {[%emt 0:00:46]} Bf7 {[%emt 0:09:37]} 34. Kh4 {[%emt 0:01:14]} Rc6 {[%emt 0:00:46]} 35. Nf3 {[%emt 0:01:05]} Rdc7 {[%emt 0:00:26]} 36. Red1 {[%emt 0:02:01]} d5 {[%emt 0:00:33]} 37. Ne1 {[%emt 0:04:55]} Re7 {[%emt 0:02:33]} 38. Nf3 {[%emt 0:02:58]} Re4 {[%emt 0:00:24]} 39. Kg3 {[%emt 0:04:26]} Rc3 {[%emt 0:01:17]} 40. Rd3 {[%emt 0:00:00]} h4+ {[%emt 0:00:00]} 41. Nxh4 {[%emt 0:01:14]} Rxd3+ {[%emt 0:03:53]} 42. Rxd3 {[%emt 0:00:01]} Rxb4 {[%emt 0:00:39]} 43. Nf3 {[%emt 0:01:28]} Re4 {[%emt 0:00:25]} 44. Rc3 {[%emt 0:00:01]} Be8 {[%emt 0:06:35]} 45. Rc8 {[%emt 0:01:48]} a5 {[%emt 0:02:24]} 46. Ng5 {[%emt 0:06:50]} Re7 {[%emt 0:01:42]} 47. Ra8 {[%emt 0:00:41]} a4 {[%emt 0:00:41]} 48. Ra6+ {[%emt 0:00:17]} Kg7 {[%emt 0:00:06]} 49. Re6 {[%emt 0:00:41]} Kf8 {[%emt 0:01:14]} 50. Rxe7 {[%emt 0:05:00]} Kxe7 {[%emt 0:00:03]} 51. b4 {[%emt 0:00:02]} d4 {[%emt 0:01:54]} 52. Kf2 {[%emt 0:01:14]} Kd6 {[%emt 0:06:50]} 53. Ke2 {[%emt 0:00:10]} Bc6 {[%emt 0:00:06]} 54. Nf7+ {[%emt 0:20:33]} Ke7 {[%emt 0:00:30]} 55. Ne5 {[%emt 0:00:01]} Bxg2 {[%emt 0:00:37]} 56. Kd3 {[%emt 0:00:07]} Bxh3 {[%emt 0:04:41]} 57. Nxg6+ {[%emt 0:00:17]} Kd6 {[%emt 0:00:38]} 58. Kxd4 {[%emt 0:00:16]} a3 {[%emt 0:00:16]} 59. Nh4 {[%emt 0:01:37]} Bg4 {[%emt 0:04:43]} 60. Ng2 {[%emt 0:02:01]} Bh5 {[%emt 0:00:35]} 61. Ne3 {[%emt 0:00:01]} Bf7 {[%emt 0:00:09]} 62. Nc2 {[%emt 0:01:53]} Bxa2 {[%emt 0:00:25]} 63. Nxa3 {[%emt 0:00:03]} Kc6 {[%emt 0:00:21]} 64. Ke5 {[%emt 0:00:02]} Bb3 {[%emt 0:00:20]} 65. Nb1 {[%emt 0:00:01]} Bc2 {[%emt 0:00:17]} 66. Nc3 {[%emt 0:00:03]} Bd3 {[%emt 0:00:14]} 67. Nd5 {[%emt 0:00:03]} Kd7 {[%emt 0:00:19]} 68. Ne3 {[%emt 0:00:01]} Kc6 {[%emt 0:00:07]} 69. Nxf5 {[%emt 0:00:04]} 1-0

[Event "Hungarian U20 Junior-ch Men 2024"]
[Site "Budapest"]
[Date "2024.03.16"]
[Round "6.1"]
[White "Karacsonyi, Gellert"]
[Black "Gombocz, Ferenc Jr."]
[Result "1/2-1/2"]
[ECO "C55"]
[WhiteElo "2386"]
[BlackElo "2351"]
[Annotator "TA"]
[PlyCount "52"]
[EventDate "2024.03.10"]
[EventCountry "HUN"]
[SourceTitle "playchess.com"]
[Source "ChessBase"]
[SourceQuality "1"]
[TimeControl "40/5400+30:1800+30"]

{[%evp 11,52,8,15,9,9,14,15,-7,0,-9,29,30,41,36,23,27,37,29,26,27,21,-24,-30,-42,-46,-50,-44,-49,0,0,0,0,0,0,0,0,0,0,0,0,0,0,0]} 1. e4 {[%emt 0:00:34]} e5 {[%emt 0:00:37]} 2. Nf3 {[%emt 0:00:06]} Nc6 {[%emt 0:00:03]} 3. Bc4 {[%emt 0:00:07]} Nf6 {[%emt 0:00:07]} 4. d3 {[%emt 0:00:08]} Be7 {[%emt 0:00:38]} 5. O-O {[%emt 0:00:10]} O-O {[%emt 0:00:09]} 6. Nc3 {[%emt 0:00:08]} d6 {[%emt 0:00:17]} 7. a4 {[%emt 0:00:05]} Bg4 {[%emt 0:00:44]} 8. h3 {[%emt 0:00:09]} Bh5 {[%emt 0:11:34]} 9. Nd5 {[%emt 0:00:07]} Nxd5 {[%emt 0:04:18]} 10. Bxd5 {[%emt 0:00:05]} Bxf3 {[%emt 0:00:25]} 11. Qxf3 {[%emt 0:00:11]} Nd4 {[%emt 0:00:03][%csl LRc2,LRf3]} 12. Qd1 {[%emt 0:00:09]} c6 {[%emt 0:00:04]} 13. Ba2 {[%emt 0:00:12]} Bg5 {[%emt 0:00:21]} 14. c3 {[%emt 0:08:40] Bxg5 is the strong threat.} Bxc1 {[%emt 0:00:21]} 15. Rxc1 {[%emt 0:00:12]} Ne6 {[%emt 0:00:05]} 16. Qd2 {[%emt 0:08:31]} Nf4 {[%emt 0:01:36]} 17. Kh2 {[%emt 0:23:39][%cal Bg1h2,Bh2g2,Bg2h3,Bh3g3][%mdl 32]} Qg5 {[%emt 0:01:00][%csl Gf4][%cal Rg5g2]} 18. g3 {[%emt 0:00:05] [#]} Nxh3 {[%emt 0:01:02]} 19. Qe2 {[%emt 0:20:22] [#]} (19. Qxg5 Nxg5) 19... Nf4 {[%emt 1:02:24]} 20. gxf4 $11 {[%emt 0:00:10] The position is equal.} Qxf4+ {[%emt 0:00:05]} 21. Kg2 {[%emt 0:00:04]} (21. Kg1 $5 Qg5+ $8 22. Kh2 Qh4+ 23. Kg2 Qg5+ 24. Kh3 Qh6+ 25. Kg3 Qf4+ 26. Kh3 Qh6+ 27. Kg3 Qf4+ 28. Kg2 Qg5+ 29. Kf3 Qf6+ 30. Kg3 Qf4+ $11) 21... Qg5+ {[%emt 0:00:05]} 22. Kh3 {[%emt 0:00:07] Threatens to win with Qe3.} Qh6+ {[%emt 0:00:08]} 23. Kg3 {[%emt 0:00:05]} Qf4+ {[%emt 0:00:03]} 24. Kh3 {[%emt 0:00:05] Hoping for Qe3.} (24. Kg2 $5 Qg5+ $8 25. Kh3 Qh6+ 26. Kg3 Qf4+ 27. Kh3 Qh6+ $11) 24... Qh6+ {[%emt 0:00:04]} 25. Kg3 {[%emt 0:00:07] Qg4 would now be deadly.} Qf4+ {[%emt 0:00:03]} 26. Kh3 {[%emt 0:00:09] aiming for Qe3.} (26. Kg2 $5 Qg5+ $8 27. Kh1 Qh4+ 28. Kg2 Qg5+ $11) 26... Qh6+ {[%emt 0:00:04] Weighted Error Value: White=0.05 (flawless) /Black=0.07 (flawless) .  Mistake:       	---       	Black=1      Inaccurate:     	White=1     	Black=1      OK:         	White=4     	Black=11     Best:        	White=1     	Black=1      Brilliant:      	---       	Black=1} 1/2-1/2

[Event "Hungarian U20 Junior-ch Men 2024"]
[Site "Budapest"]
[Date "2024.03.16"]
[Round "6.2"]
[White "Szikszai, Bertalan"]
[Black "Pasti, Aron"]
[Result "0-1"]
[ECO "C55"]
[WhiteElo "2312"]
[BlackElo "2373"]
[Annotator "TA"]
[PlyCount "108"]
[EventDate "2024.03.10"]
[EventCountry "HUN"]
[SourceTitle "playchess.com"]
[Source "ChessBase"]
[SourceQuality "1"]
[TimeControl "40/5400+30:1800+30"]

{[%evp 35,108,-51,-20,-86,-65,-65,63,-62,-62,-91,-84,-81,-92,-119,-104,-116,-108,-146,-125,-142,-104,-87,-85,-85,-43,-72,-57,-120,-65,-70,-26,-138,-99,-175,-92,-253,-252,-354,-316,-488,-219,-490,-495,-1118,-1016,-1124,-1090,-5502,-582,-585,-563,-566,-565,-557,-572,-572,-562,-649,-639,-676,-681,-678,-649,-866,-818,-861,-836,-1702,-971,-6682,-915,-1559,-908,-820,-820]} 1. e4 {[%emt 0:00:34]} e5 {[%emt 0:14:40]} 2. Nf3 {[%emt 0:00:10]} Nc6 {[%emt 0:01:01]} 3. Bc4 {[%emt 0:00:17]} Nf6 {[%emt 0:00:07]} 4. d3 {[%emt 0:00:54]} Be7 {[%emt 0:03:48]} 5. O-O {[%emt 0:03:03]} O-O {[%emt 0:00:38]} 6. c3 {[%emt 0:01:41]} d5 {[%emt 0:05:13]} 7. exd5 {[%emt 0:00:37]} Nxd5 {[%emt 0:00:01]} 8. a4 {[%emt 0:05:37] C55: Two Knights: 4 d3, 4 d4 exd4 5 e5 and Max Lange Attack.} Nb6 $146 {[%emt 0:16:16]} ({Predecessor:} 8... Bg4 9. h3 Bh5 10. Re1 a6 11. a5 Kh8 12. Nbd2 f6 13. Ne4 Qd7 14. Nxe5 Nxe5 15. Qxh5 {1-0 Afanasiev,N (2562)-Shuvalova,P (2498) Ekaterinburg Scerbin Memorial rapid 2023 (9)}) 9. Bb5 {[%emt 0:03:12]} Nd7 {[%emt 0:00:26]} 10. a5 {[%emt 0:06:01]} f5 {[%emt 0:02:40]} 11. Nbd2 {[%emt 0:15:25]} Bf6 {[%emt 0:02:58]} 12. Re1 {[%emt 0:07:24]} a6 {[%emt 0:04:53]} 13. Bc4+ {[%emt 0:03:38]} Kh8 {[%emt 0:05:30]} 14. Nf1 {[%emt 0:03:56]} Re8 {[%emt 0:02:48]} 15. Ng3 {[%emt 0:07:45]} g6 {[%emt 0:05:00]} 16. Bh6 {[%emt 0:00:30]} Nf8 {[%emt 0:00:52]} 17. Qa4 {[%emt 0:13:50]} Be6 {[%emt 0:04:43]} 18. Rad1 {[%emt 0:02:22]} Bxc4 {[%emt 0:00:53]} 19. dxc4 {[%emt 0:00:40]} (19. Qxc4 $11 {keeps the balance.} Nxa5 20. Qa2) 19... Qe7 {[%emt 0:01:42]} 20. Nd4 $1 {[%emt 0:05:01]} Nb8 {[%emt 0:05:17]} (20... Nd8 $15) 21. Nc2 {[%emt 0:04:17]} ({White should try} 21. Qb3 $14) 21... Ne6 $15 {[%emt 0:03:21]} 22. Qb4 {[%emt 0:02:37]} c5 {[%emt 0:02:28]} 23. Qa4 {[%emt 0:00:30]} Qf7 {[%emt 0:00:01]} 24. Rd5 {[%emt 0:03:48]} Nc6 {[%emt 0:02:18]} 25. Red1 {[%emt 0:00:06]} Rad8 {[%emt 0:00:08]} 26. Bc1 {[%emt 0:01:25]} e4 {[%emt 0:00:38]} 27. Ne3 {[%emt 0:02:37]} Ne5 {[%emt 0:05:16]} 28. Rxd8 {[%emt 0:00:19]} Rxd8 {[%emt 0:00:00]} 29. Nd5 {[%emt 0:01:14]} Nd3 {[%emt 0:02:26]} 30. Qb3 {[%emt 0:00:22]} Be5 {[%emt 0:02:29]} 31. Qb6 {[%emt 0:00:44] [#]} ({White should play} 31. Qc2 $15) 31... Rd6 {[%emt 0:00:37]} (31... h5 $1 $17 {White must now prevent ...h4.} 32. Nf1 Rd6) 32. Qb3 $1 $15 {[%emt 0:01:08]} Qd7 {[%emt 0:04:03]} 33. Rf1 {[%emt 0:01:56]} (33. Bh6 $11 {remains equal.}) 33... Qc6 {[%emt 0:01:24]} 34. Bh6 {[%emt 0:00:50] [#]} (34. Ne7 $17 Qd7 35. Nd5) 34... Nc7 {[%emt 0:01:01]} (34... Bf4 $1 $19 {[%cal Rf4h6]} 35. Nxf4 Ndxf4 (35... Nexf4 36. Qc2 $17)) 35. Nxc7 $2 {[%emt 0:02:12]} (35. f3 $17 {was called for.} exf3 36. Rxf3 Nxd5 37. Rxd3) 35... Qxc7 $19 {[%emt 0:00:01]} 36. f3 {[%emt 0:00:22]} (36. Rd1 {was worth a try.}) 36... e3 $19 {[%emt 0:01:22]} (36... Qxa5 37. Qxb7 Qd8 38. fxe4 $11) 37. Qa4 {[%emt 0:00:51]} (37. f4 {keeps fighting.} Bf6 38. Ne2) 37... Rd8 {[%emt 0:01:28]} (37... Nxb2 38. Qe8#) (37... Qe7 $142 {aiming for ...Bxg3.} 38. Ne2 f4 (38... Nxb2 $2 39. Bg5 $19)) 38. Bg5 $2 {[%emt 0:00:55]} (38. Qc2 {was forced.} Bf4 (38... Qxa5 39. Bg5 $15) 39. Rd1) 38... Bxg3 $19 {[%emt 0:00:17]} (38... Nxb2 39. Bxd8 Qxd8 40. Qa3 $11 (40. Qb3 Nd3 $11)) 39. Bf6+ {[%emt 0:00:37]} (39. hxg3 $142 e2 (39... Nxb2 40. Qb3 $11) 40. Bxd8 Qxd8 (40... exf1=R+ $2 41. Kxf1 Qxd8 42. Qd1 $19) 41. Qc2 exf1=N (41... exf1=Q+ $2 42. Kxf1 Ne5 43. Kg1 $19) 42. Kxf1) 39... Kg8 $19 {[%emt 0:00:01]} 40. hxg3 {[%emt 0:00:00]} e2 {[%emt 0:00:00]} (40... Nxb2 41. Bxd8 Qxd8 42. Qb3 $11) 41. Bxd8 {[%emt 0:04:13]} Qxd8 {[%emt 0:02:21]} (41... exf1=Q+ $142 42. Kxf1 Qe5 (42... Qxd8 $2 43. Qd1 $19)) 42. Qc2 $19 {[%emt 0:03:45]} exf1=Q+ {[%emt 0:00:25]} 43. Kxf1 {[%emt 0:00:05]} Ne5 {[%emt 0:00:04]} 44. Kg1 {[%emt 0:00:12]} Qxa5 {[%emt 0:00:32]} 45. Qd2 {[%emt 0:01:00]} Nf7 {[%emt 0:00:30]} ({Weaker is} 45... Nxc4 46. Qd5+ Kg7 47. Qxc4 $15) 46. Kh2 {[%emt 0:00:42]} Qd8 {[%emt 0:00:04]} 47. Qe3 {[%emt 0:00:14]} b6 {[%emt 0:00:15]} 48. Qe6 {[%emt 0:00:17]} a5 {[%emt 0:00:01]} 49. b3 {[%emt 0:00:56]} Qd6 {[%emt 0:00:05]} 50. Qe8+ {[%emt 0:00:08]} Kg7 {[%emt 0:00:02]} 51. Qe3 {[%emt 0:00:14]} h5 {[%emt 0:00:10]} 52. Kh3 {[%emt 0:00:12]} Qe5 {[%emt 0:00:05]} 53. Qd3 {[%emt 0:00:18]} Ng5+ {[%emt 0:00:29]} 54. Kh2 {[%emt 0:00:27]} f4 {[%emt 0:00:12]} 0-1

[Event "Hungarian U20 Junior-ch Men 2024"]
[Site "Budapest"]
[Date "2024.03.16"]
[Round "6.3"]
[White "Pasztor, Balazs"]
[Black "Tancsa, Tamas"]
[Result "1-0"]
[ECO "C80"]
[WhiteElo "2406"]
[BlackElo "2273"]
[Annotator "TA"]
[PlyCount "51"]
[EventDate "2024.03.10"]
[EventCountry "HUN"]
[SourceTitle "playchess.com"]
[Source "ChessBase"]
[SourceQuality "1"]
[TimeControl "40/5400+30:1800+30"]

{[%evp 11,51,28,85,0,0,-16,-8,-20,29,32,39,44,41,37,37,48,47,49,41,0,25,35,60,57,126,114,122,160,172,156,162,102,316,316,375,366,356,363,414,378,740,744]} 1. e4 {[%emt 0:05:38]} e5 {[%emt 0:00:41]} 2. Nf3 {[%emt 0:00:05]} Nc6 {[%emt 0:00:02]} 3. Bb5 {[%emt 0:00:09]} a6 {[%emt 0:00:04]} 4. Ba4 {[%emt 0:00:06]} Nf6 {[%emt 0:00:07]} 5. O-O {[%emt 0:00:05]} Nxe4 {[%emt 0:00:16]} 6. d4 {[%emt 0:00:17]} d5 {[%emt 0:00:14]} (6... b5 $11 {hält das Gleichgewicht.}) 7. dxe5 {[%emt 0:05:47]} (7. Nxe5 $16 Bd7 8. Nxf7 Kxf7 9. Qh5+ g6 10. Qxd5+ Kg7 11. Qxe4) 7... Bc5 {[%emt 0:00:23]} 8. Nbd2 {[%emt 0:05:54]} O-O {[%emt 0:01:10]} 9. c3 {[%emt 0:03:44] Die Stellung ist ausgeglichen.} (9. Nxe4 {vereinfacht} dxe4 10. Qxd8 Rxd8 11. Ng5) 9... Nxf2 {[%emt 0:00:42]} (9... Bg4 $142 10. Bxc6 Nxd2 11. Qxd2 bxc6) 10. Rxf2 $11 {[%emt 0:01:32][%cal Od1e1]} f6 {[%emt 0:01:01] [#]} 11. Bxc6 $1 {[%emt 0:10:19]} bxc6 {[%emt 0:06:54] [#]} 12. e6 {[%emt 0:01:52] Schwarz muss nun Nd4 beachten.} Bxf2+ {[%emt 0:01:05]} 13. Kxf2 {[%emt 0:00:02]} Bxe6 {[%emt 0:15:30]} 14. Nb3 {[%emt 0:00:10]} Re8 {[%emt 0:03:36] Schwarz hat schwache schwarze Felder} 15. Bf4 {[%emt 0:04:31][%cal Bc1f4,Bf4g3,Bg3f2,Bf2d4][%mdl 1056] Weiss hat Kompensation.} Bf7 {[%emt 0:03:23]} 16. Nc5 {[%emt 0:06:59]} g5 {[%emt 0:16:45][%cal Od8e7] Und ...Qe7! würde nun gewinnen.} 17. Bg3 {[%emt 0:06:57]} f5 {[%emt 0:02:38]} ({Vorzuziehen ist} 17... Bh5 $14) 18. Kg1 $16 {[%emt 0:01:46] Weiß steht deutlich aktiver.} f4 {[%emt 0:16:09]} 19. Bf2 {[%emt 0:00:09]} Qf6 {[%emt 0:00:06]} 20. Bd4 {[%emt 0:05:25]} Qf5 {[%emt 0:07:08]} 21. Qd3 {[%emt 0:00:27]} (21. Qa4 $18 Rab8 22. b3 (22. Nxa6 Rxb2 23. Kh1 Rxg2 $19)) 21... Re4 $2 {[%emt 0:06:06] Das kostet Schwarz die Partie.} 22. Nd2 $18 {[%emt 0:00:33] Ein dynamisches Springerpaar.} Rae8 {[%emt 0:00:04]} 23. Ndxe4 {[%emt 0:01:57]} (23. Qxa6 Re2 24. Ncb3 c5 $19) 23... dxe4 {[%emt 0:00:14]} 24. Qxa6 {[%emt 0:00:16]} e3 {[%emt 0:06:33]} 25. Qxc6 {[%emt 0:01:30][%cal Oc5d7] Droht Nd7! und aus.} g4 $2 {[%emt 0:03:47]} (25... Re7 26. Qf6 Qxf6 27. Bxf6 Re8) 26. Qh6 {[%emt 0:00:43] Gewichteter Fehlerwert: Weiß=0.12 (sehr präzise) /Schwarz=0.40.  Verlustzug:     	---       	Schwarz=1     Fehler:       	Weiß=1     	Schwarz=3     Ungenau:       	Weiß=1     	---        OK:         	Weiß=8     	Schwarz=4     Bester:       	Weiß=2     	---} 1-0

[Event "Hungarian U20 Junior-ch Men 2024"]
[Site "Budapest"]
[Date "2024.03.16"]
[Round "6.4"]
[White "Juhasz, Agoston"]
[Black "Palczert, Matyas"]
[Result "1/2-1/2"]
[ECO "B12"]
[WhiteElo "2406"]
[BlackElo "2297"]
[Annotator "RC"]
[PlyCount "158"]
[EventDate "2024.03.10"]
[EventCountry "HUN"]
[SourceTitle "playchess.com"]
[Source "ChessBase"]
[SourceQuality "1"]
[TimeControl "40/5400+30:1800+30"]

1. e4 {[%emt 0:00:33]} c6 {[%emt 0:02:17]} 2. d4 {[%emt 0:00:25]} d5 {[%emt 0:00:06]} 3. e5 {[%emt 0:01:07]} Bf5 {[%emt 0:00:13]} 4. Nf3 {[%emt 0:00:58]} e6 {[%emt 0:00:21]} 5. Be2 {[%emt 0:00:07]} c5 {[%emt 0:00:49]} 6. c3 {[%emt 0:02:07]} Nc6 {[%emt 0:03:11]} 7. O-O {[%emt 0:00:39]} cxd4 {[%emt 0:02:06]} 8. Nxd4 {[%emt 0:00:44]} Nge7 {[%emt 0:01:28]} 9. Bb5 {[%emt 0:01:16]} Qd7 {[%emt 0:01:59]} 10. Nd2 {[%emt 0:12:36]} Bg6 {[%emt 0:09:45]} 11. N2b3 {[%emt 0:35:13]} a6 {[%emt 0:13:18]} 12. Bxc6 {[%emt 0:06:16]} Nxc6 {[%emt 0:00:39]} 13. Nxc6 {[%emt 0:00:07]} Qxc6 {[%emt 0:00:41]} 14. Bg5 {[%emt 0:02:35]} h6 {[%emt 0:03:04]} 15. Bh4 {[%emt 0:00:52]} Qc4 {[%emt 0:02:22]} 16. Bg3 {[%emt 0:05:26]} Be7 {[%emt 0:07:48]} 17. Nd4 {[%emt 0:02:52]} O-O {[%emt 0:13:40]} 18. Qb3 {[%emt 0:02:28]} b5 {[%emt 0:02:53]} 19. Bf4 {[%emt 0:03:10]} Rfc8 {[%emt 0:07:21]} 20. Be3 {[%emt 0:00:24]} Rab8 {[%emt 0:05:13]} 21. Qd1 {[%emt 0:05:43]} b4 {[%emt 0:02:49]} 22. cxb4 {[%emt 0:02:32]} Qxb4 {[%emt 0:00:35]} 23. b3 {[%emt 0:02:16]} Qa3 {[%emt 0:03:45]} 24. Bc1 {[%emt 0:05:02]} Qa5 {[%emt 0:00:45]} 25. Bd2 {[%emt 0:00:18]} Bb4 {[%emt 0:01:33]} 26. Bxb4 {[%emt 0:00:34]} Qxb4 {[%emt 0:00:10]} 27. a3 {[%emt 0:00:51]} Qa5 {[%emt 0:03:40]} 28. b4 {[%emt 0:00:55]} Qb6 {[%emt 0:00:11]} 29. Qd2 {[%emt 0:00:44]} Rc4 {[%emt 0:00:55]} 30. Nb3 {[%emt 0:00:31]} Rbc8 {[%emt 0:01:30]} 31. Nc5 {[%emt 0:02:10]} a5 {[%emt 0:02:26]} 32. Rfc1 {[%emt 0:00:40]} Rxc1+ {[%emt 0:03:32]} 33. Rxc1 {[%emt 0:00:23]} axb4 {[%emt 0:00:16]} 34. Qxb4 {[%emt 0:01:25]} Qxb4 {[%emt 0:01:34]} 35. axb4 {[%emt 0:00:02]} h5 {[%emt 0:01:04]} 36. Rd1 {[%emt 0:03:32]} Ra8 {[%emt 0:02:43]} 37. h3 {[%emt 0:00:47]} Ra2 {[%emt 0:00:22]} 38. Rd4 {[%emt 0:00:36]} Rb2 {[%emt 0:00:54]} 39. f3 {[%emt 0:00:28]} Kf8 {[%emt 0:01:02]} 40. Kh2 {[%emt 0:00:00]} Ke7 {[%emt 0:00:00]} 41. Kg3 {[%emt 0:05:39]} f6 {[%emt 0:02:27]} 42. f4 {[%emt 0:03:21]} fxe5 {[%emt 0:01:15]} 43. fxe5 {[%emt 0:00:05]} Be8 {[%emt 0:02:47]} 44. Nb7 {[%emt 0:08:02]} Bb5 {[%emt 0:02:09]} 45. Kf3 {[%emt 0:03:03]} Bc4 {[%emt 0:05:09]} 46. Nd6 {[%emt 0:00:53]} Rxb4 {[%emt 0:00:53]} 47. Kf4 {[%emt 0:00:53]} Rb2 {[%emt 0:02:09]} 48. g4 {[%emt 0:03:09]} hxg4 {[%emt 0:01:14]} 49. hxg4 {[%emt 0:00:04]} Bb5 {[%emt 0:07:26]} 50. Kg5 {[%emt 0:01:42]} Be8 {[%emt 0:03:06]} 51. Nxe8 {[%emt 0:02:14]} Kxe8 {[%emt 0:00:02]} 52. Kg6 {[%emt 0:01:26]} Re2 {[%emt 0:00:56]} 53. Ra4 {[%emt 0:01:55]} Rxe5 {[%emt 0:02:01]} 54. Kxg7 {[%emt 0:01:50]} Re4 {[%emt 0:00:39]} 55. Ra8+ {[%emt 0:00:57]} Ke7 {[%emt 0:00:12]} 56. g5 {[%emt 0:02:01]} d4 {[%emt 0:01:00]} 57. g6 {[%emt 0:01:14]} d3 {[%emt 0:02:43]} 58. Ra7+ {[%emt 0:00:11]} Kd6 {[%emt 0:00:08]} 59. Ra1 {[%emt 0:01:25]} Rg4 {[%emt 0:02:15]} 60. Kf6 {[%emt 0:00:28]} Rg2 {[%emt 0:01:34]} 61. Rd1 {[%emt 0:00:27]} Rf2+ {[%emt 0:00:11]} 62. Kg5 {[%emt 0:00:24]} d2 {[%emt 0:00:27]} 63. g7 {[%emt 0:00:19]} Rg2+ {[%emt 0:01:01]} 64. Kf4 {[%emt 0:00:50]} Rxg7 {[%emt 0:00:14]} 65. Rxd2+ {[%emt 0:00:05]} Ke7 {[%emt 0:00:05]} 66. Ke5 {[%emt 0:00:47]} Rg1 {[%emt 0:00:13]} 67. Re2 {[%emt 0:00:25]} Rg5+ {[%emt 0:00:08]} 68. Kf4 {[%emt 0:00:39]} Ra5 {[%emt 0:00:14]} 69. Rb2 {[%emt 0:00:22]} Kf6 {[%emt 0:00:09]} 70. Rb4 {[%emt 0:00:42]} Rh5 {[%emt 0:00:40]} 71. Ke3 {[%emt 0:00:20]} Rh3+ {[%emt 0:00:04]} 72. Ke2 {[%emt 0:00:04]} Kf5 {[%emt 0:00:08]} 73. Rb5+ {[%emt 0:00:15]} e5 {[%emt 0:00:06]} 74. Rb4 {[%emt 0:00:09]} Rh6 {[%emt 0:00:09]} 75. Ke3 {[%emt 0:00:24]} Ra6 {[%emt 0:00:12]} 76. Rc4 {[%emt 0:00:32]} Ra3+ {[%emt 0:00:06]} 77. Ke2 {[%emt 0:00:02]} Ke6 {[%emt 0:00:12]} 78. Rb4 {[%emt 0:00:21]} Kd5 {[%emt 0:00:06]} 79. Rh4 {[%emt 0:00:11]} Ra2+ {[%emt 0:00:09]} 1/2-1/2